fUST/lending_fUST_20240503
["ID","MTS","AMOUNT","RATE_DAILY","PERIOD"]
[325271865,1714675852470,-702.39,0.00041643,7]
[325271866,1714675852479,-500.0,0.00041643,7]
[325271867,1714675852489,-500.0,0.00041643,7]
[325271868,1714675852498,-500.0,0.00041643,7]
[325271869,1714675852508,-568.94,0.00041643,7]
[325271870,1714675852517,-151.0,0.00041643,7]
[325271871,1714675852527,-151.0,0.00041643,7]
[325271872,1714675852536,-500.0,0.00041643,7]
[325271873,1714675852546,-255.45,0.00041643,7]
[325271874,1714675852555,-500.0,0.00041643,7]
[325271875,1714675852565,-500.0,0.00041643,7]
[325271876,1714675852574,-500.0,0.00041643,7]
[325271877,1714675852583,-500.0,0.00041643,7]
[325271878,1714675852593,-500.0,0.00041643,7]
[325271879,1714675852602,-151.0,0.00041643,7]
[325271880,1714675852611,-151.0,0.00041643,7]
[325271881,1714675852621,-500.0,0.00041643,7]
[325271882,1714675852630,-500.0,0.00041643,7]
[325271883,1714675852639,-151.0,0.00041643,7]
[325271884,1714675852648,-972.23,0.00041643,7]
[325271885,1714675852658,-588.0,0.000417,30]
[325271886,1714675852667,-1000.0,0.00041916,5]
[325271887,1714675852676,-202.89678658,0.00041916,10]
[325271897,1714675853078,-2797.10321342,0.00041916,10]
[325271898,1714675853087,-500.0,0.00041917,2]
[325271899,1714675853097,-501.68200846,0.00041917,7]
[325271900,1714675853106,-500.0,0.00041917,7]
[325271901,1714675853115,-500.0,0.00041917,7]
[325271902,1714675853124,-500.0,0.00041917,7]
[325271903,1714675853134,-290.1,0.00041917,7]
[325271904,1714675853143,-525.70312802,0.00041917,7]
[325271905,1714675853153,-80.85520291,0.00041917,7]
[325271906,1714675853165,-419.14479709,0.00041917,7]
[325271907,1714675853174,-500.0,0.00041917,7]
[325271908,1714675853183,-517.13741319,0.00041917,7]
[325271909,1714675853192,-536.14,0.00041917,7]
[325271910,1714675853203,-500.0,0.00041917,7]
[325271911,1714675853213,-460.15102662,0.00041917,7]
[325271912,1714675853222,-500.0,0.00041917,7]
[325271913,1714675853231,-500.0,0.00041917,7]
[325271914,1714675853240,-500.0,0.00041917,7]
[325271915,1714675853249,-500.0,0.00041917,7]
[325271916,1714675853259,-761.29,0.00041917,7]
[325271917,1714675853268,-559.62,0.00041917,7]
[325271918,1714675853277,-500.0,0.00041917,7]
[325271919,1714675853287,-500.0,0.00041917,7]
[325271920,1714675853296,-500.0,0.00041917,7]
[325271921,1714675853305,-500.0,0.00041917,7]
[325271922,1714675853314,-500.0,0.00041917,7]
[325271923,1714675853324,-500.0,0.00041917,7]
[325271925,1714675853334,-500.0,0.00041917,7]
[325271927,1714675853343,-500.0,0.00041917,7]
[325271929,1714675853353,-500.0,0.00041917,7]
[325271931,1714675853362,-500.0,0.00041917,7]
[325271933,1714675853371,-500.0,0.00041917,7]
[325271934,1714675853380,-500.0,0.00041917,7]
[325271936,1714675853389,-500.0,0.00041917,7]
[325271938,1714675853398,-500.0,0.00041917,7]
[325271939,1714675853408,-500.0,0.00041917,7]
[325271941,1714675853417,-500.0,0.00041917,7]
[325271942,1714675853426,-500.0,0.00041917,7]
[325271944,1714675853435,-500.0,0.00041917,7]
[325271946,1714675853446,-500.0,0.00041917,7]
[325271947,1714675853455,-500.0,0.00041917,7]
[325271949,1714675853465,-500.0,0.00041917,7]
[325271951,1714675853475,-500.0,0.00041917,7]
[325271952,1714675853485,-501.63595622,0.00041917,7]
[325271954,1714675853494,-500.0,0.00041917,7]
[325271956,1714675853503,-360.22,0.00041917,7]
[325271958,1714675853512,-502.66858447,0.00041917,7]
[325271959,1714675853522,-500.0,0.00041917,7]
[325271961,1714675853532,-500.0,0.00041917,7]
[325271963,1714675853540,-500.0,0.00041917,7]
[325271964,1714675853549,-500.0,0.00041917,7]
[325271966,1714675853558,-706.32,0.00041917,7]
[325271968,1714675853567,-500.0,0.00041917,7]
[325271969,1714675853576,-500.0,0.00041917,7]
[325271971,1714675853585,-583.59843808,0.00041917,7]
[325271973,1714675853594,-500.0,0.00041917,7]
[325271975,1714675853603,-725.39,0.00041917,7]
[325271976,1714675853613,-500.0,0.00041917,7]
[325271978,1714675853621,-507.82913235,0.00041917,7]
[325271979,1714675853630,-500.0,0.00041917,7]
[325271981,1714675853640,-500.0,0.00041917,7]
[325271983,1714675853649,-500.0,0.00041917,7]
[325271984,1714675853658,-500.0,0.00041917,7]
[325271986,1714675853667,-500.0,0.00041917,7]
[325271988,1714675853676,-500.0,0.00041917,7]
[325271989,1714675853686,-519.14,0.00041917,7]
[325271991,1714675853696,-500.0,0.00041917,7]
[325271993,1714675853705,-500.0,0.00041917,7]
[325271994,1714675853714,-812.23,0.00041917,7]
[325271996,1714675853727,-703.24,0.00041917,7]
[325271997,1714675853736,-500.0,0.00041917,7]
[325271999,1714675853745,-500.0,0.00041917,7]
[325272000,1714675853754,-500.0,0.00041917,3]
[325272002,1714675853763,-151.0,0.00041917,7]
[325272004,1714675853773,-500.0,0.00041917,7]
[325272005,1714675853782,-500.0,0.00041917,7]
[325272006,1714675853791,-151.0,0.00041917,7]
[325272007,1714675853800,-728.99,0.00041917,7]
[325272008,1714675853809,-21416.93,0.00041917,7]
[325272010,1714675853819,-574.49,0.00041917,7]
[325272012,1714675853828,-521.87878893,0.00041917,7]
[325272013,1714675853837,-195.083349,0.00041917,7]
[325272019,1714675853846,-883.39,0.00041917,7]
[325272021,1714675853913,-321.00541389,0.00041917,7]
[325272022,1714675853922,-151.232795,0.00041917,7]
[325272024,1714675853931,-195.083349,0.00041917,7]
[325272026,1714675853940,-500.0,0.00041917,7]
[325272027,1714675853952,-500.0,0.00041917,7]
[325272029,1714675853961,-500.0,0.00041917,7]
[325272031,1714675853970,-151.232795,0.00041917,7]
[325272032,1714675853979,-500.0,0.00041917,7]
[325272033,1714675853988,-500.0,0.00041917,7]
[325272035,1714675853998,-500.0,0.00041917,7]
[325272036,1714675854007,-151.0,0.00041917,7]
[325272038,1714675854016,-151.0,0.00041917,7]
[325272040,1714675854026,-1018.77,0.00041917,7]
[325272042,1714675854035,-151.0,0.00041917,7]
[325272043,1714675854047,-500.0,0.00041917,7]
[325272045,1714675854057,-151.0,0.00041917,7]
[325272046,1714675854067,-9406.91,0.00041917,7]
[325272047,1714675854076,-551.4,0.00041917,2]
[325272048,1714675854086,-411.01971731,0.00041917,7]
[325272049,1714675854095,-500.0,0.00041917,7]
[325272050,1714675854104,-1037.51,0.00041917,7]
[325272051,1714675854114,-605.53,0.00041917,7]
[325272052,1714675854123,-500.0,0.00041917,7]
[325272053,1714675854132,-664.97,0.00041917,7]
[325272054,1714675854141,-1445.15,0.00041917,7]
[325272055,1714675854151,-500.0,0.00041917,7]
[325272056,1714675854160,-526.92653398,0.00041917,7]
[325272057,1714675854169,-500.0,0.00041917,7]
[325272058,1714675854178,-500.0,0.00041917,7]
[325272059,1714675854187,-500.0,0.00041917,7]
[325272060,1714675854198,-230.98338683,0.00041917,7]
[325272061,1714675854212,-269.01661317,0.00041917,7]
[325272062,1714675854221,-151.0,0.00041917,7]
[325272063,1714675854230,-1285.27,0.00041917,7]
[325272064,1714675854240,-775.92,0.00041917,7]
[325272065,1714675854250,-151.0,0.00041917,7]
[325272066,1714675854259,-500.0,0.00041917,7]
[325272067,1714675854269,-151.0,0.00041917,7]
[325272068,1714675854279,-500.0,0.00041917,7]
[325272069,1714675854289,-500.0,0.00041917,7]
[325272070,1714675854299,-500.0,0.00041917,7]
[325272071,1714675854308,-500.0,0.00041917,7]
[325272072,1714675854318,-500.0,0.00041917,7]
[325272073,1714675854327,-500.0,0.00041917,7]
[325272074,1714675854337,-500.0,0.00041917,7]
[325272075,1714675854355,-497.25001716,0.00041917,7]
[325272076,1714675854371,-500.0,0.00041917,7]
[325272077,1714675854389,-151.0,0.00041917,7]
[325272078,1714675854408,-500.0,0.00041917,7]
[325272079,1714675854428,-500.0,0.00041917,7]
[325272080,1714675854444,-500.0,0.00041917,7]
[325272081,1714675854462,-127.84855467,0.00041917,7]
[325272082,1714675854480,-371.67587202,0.00041917,7]
[325272083,1714675854496,-500.0,0.00041917,7]
[325272084,1714675854514,-711.27,0.00041917,7]
[325272085,1714675854534,-500.0,0.00041917,7]
[325272086,1714675854546,-702.39,0.00041917,7]
[325272087,1714675854562,-500.0,0.00041917,7]
[325272088,1714675854578,-500.0,0.00041917,7]
[325272089,1714675854595,-568.94,0.00041917,7]
[325272090,1714675854607,-151.0,0.00041917,7]
[325272091,1714675854623,-151.0,0.00041917,7]
[325272092,1714675854638,-151.0,0.00041917,7]
[325272093,1714675854652,-500.0,0.00041917,7]
[325272094,1714675854666,-500.0,0.00041917,7]
[325272095,1714675854680,-499.0,0.00041917,7]
[325272096,1714675854696,-151.0,0.00041917,7]
[325272097,1714675854710,-159.442505,0.00041917,7]
[325272098,1714675854725,-500.0,0.00041917,7]
[325272099,1714675854739,-500.0,0.00041917,7]
[325272100,1714675854754,-601.43405,0.00041934,2]
[325272101,1714675854769,-1002.62036937,0.00041999,5]
[325272102,1714675854783,-3000.0,0.00041999,10]
[325272103,1714675854793,-5000.0,0.00042,4]
[325272104,1714675854802,-150.65349696,0.00042007,2]
[325272105,1714675854811,-203.9317258,0.00042027,2]
[325272106,1714675854822,-203.5581055,0.00042027,2]
[325272107,1714675854832,-153.0,0.00042027,2]
[325272108,1714675854842,-153.0,0.00042027,2]
[325272109,1714675854851,-306.0,0.00042027,2]
[325272110,1714675854861,-153.0,0.00042027,2]
[325272111,1714675854870,-153.0,0.00042027,2]
[325272112,1714675854880,-153.0,0.00042027,2]
[325272113,1714675854889,-620.0,0.00042037,15]
[325272114,1714675854898,-161.98182993,0.00042072,3]
[325272115,1714675854908,-150.0,0.00042092,60]
[325272116,1714675854918,-150.0,0.00042094,60]
[325272117,1714675854928,-3000.0,0.0004219,10]
[325272118,1714675854937,-500.0,0.00042191,2]
[325272119,1714675855094,-500.0,0.00042191,7]
[325272120,1714675855112,-500.0,0.00042191,7]
[325272121,1714675855122,-500.0,0.00042191,7]
[325272122,1714675855131,-500.0,0.00042191,7]
[325272123,1714675855141,-500.0,0.00042191,7]
[325272124,1714675855150,-500.0,0.00042191,7]
[325272125,1714675855159,-500.0,0.00042191,7]
[325272126,1714675855168,-500.0,0.00042191,7]
[325272127,1714675855178,-761.29,0.00042191,7]
[325272128,1714675855188,-500.0,0.00042191,7]
[325272129,1714675855199,-500.0,0.00042191,7]
[325272130,1714675855207,-165.4,0.00042191,7]
[325272131,1714675855217,-500.0,0.00042191,7]
[325272132,1714675855227,-500.0,0.00042191,7]
[325272133,1714675855237,-500.0,0.00042191,7]
[325272134,1714675855246,-520.44707597,0.00042191,7]
[325272135,1714675855256,-500.0,0.00042191,7]
[325272136,1714675855265,-500.0,0.00042191,7]
[325272137,1714675855274,-500.0,0.00042191,7]
[325272138,1714675855284,-506.22,0.00042191,7]
[325272139,1714675855293,-500.0,0.00042191,7]
[325272140,1714675855303,-500.0,0.00042191,7]
[325272141,1714675855312,-500.0,0.00042191,7]
[325272142,1714675855321,-500.0,0.00042191,7]
[325272143,1714675855330,-500.0,0.00042191,7]
[325272144,1714675855339,-184.58633422,0.00042191,7]
[325272145,1714675855399,-315.41366578,0.00042191,7]
[325272146,1714675855408,-500.0,0.00042191,7]
[325272147,1714675855417,-500.0,0.00042191,7]
[325272148,1714675855427,-706.32,0.00042191,7]
[325272149,1714675855436,-500.0,0.00042191,7]
[325272150,1714675855447,-500.0,0.00042191,7]
[325272151,1714675855457,-725.39,0.00042191,7]
[325272152,1714675855466,-500.0,0.00042191,7]
[325272153,1714675855475,-500.0,0.00042191,7]
[325272154,1714675855484,-500.0,0.00042191,7]
[325272155,1714675855494,-500.0,0.00042191,7]
[325272156,1714675855503,-500.0,0.00042191,7]
[325272157,1714675855513,-519.14,0.00042191,7]
[325272158,1714675855522,-500.0,0.00042191,7]
[325272159,1714675855531,-148.91551534,0.00042191,7]
[325272160,1714675855544,-351.08448466,0.00042191,7]
[325272161,1714675855553,-812.23,0.00042191,7]
[325272162,1714675855562,-703.24,0.00042191,7]
[325272163,1714675855572,-500.0,0.00042191,7]
[325272164,1714675855581,-500.0,0.00042191,7]
[325272165,1714675855590,-631.90086262,0.00042191,3]
[325272166,1714675855600,-151.0,0.00042191,7]
[325272167,1714675855609,-500.0,0.00042191,7]
[325272168,1714675855619,-151.0,0.00042191,7]
[325272169,1714675855628,-728.99,0.00042191,7]
[325272170,1714675855637,-11977.56576115,0.00042191,7]
[325272171,1714675855775,-7139.6,0.00040254,3]
[325272172,1714675855785,-500.0,0.00041095,7]
[325272173,1714675855796,-2702.11,0.00041095,7]
[325272174,1714675855805,-500.0,0.00041095,7]
[325272175,1714675855818,-500.0,0.00041369,7]
[325272176,1714675855828,-2702.11,0.00041369,7]
[325272177,1714675855838,-2702.11,0.00041643,7]
[325272178,1714675855847,-151.0,0.00041917,7]
[325272179,1714675855857,-972.23,0.00041917,7]
[325272180,1714675855866,-2195.5056146,0.00041917,7]
[325272181,1714675855877,-506.6043854,0.00041917,7]
[325272182,1714675855887,-1804.03551509,0.00042191,7]
[325272183,1714675855899,-1619.31722882,0.00042191,7]
[325272184,1714675855911,-1561.66564714,0.00042191,7]
[325272185,1714675855922,-987.67571366,0.00042191,7]
[325272186,1714675855934,-3466.67013414,0.00042191,7]
[325272187,1714675855943,-195.083349,0.00042191,7]
[325272188,1714675855953,-883.39,0.00042191,7]
[325272189,1714675855963,-151.232795,0.00042191,7]
[325272190,1714675855972,-195.083349,0.00042191,7]
[325272191,1714675855981,-116.53067285,0.00042191,7]
[325272192,1714675856251,-153.0,0.00042027,2]
[325272193,1714675856260,-137.42932715,0.00042191,7]
[325272194,1714675856270,-512.6,0.00042191,7]
[325272195,1714675856278,-350.0,0.00042191,7]
[325272196,1714675856288,-151.232795,0.00042191,7]
[325272197,1714675856297,-500.0,0.00042191,7]
[325272198,1714675856306,-500.0,0.00042191,7]
[325272199,1714675856315,-500.0,0.00042191,7]
[325272200,1714675856324,-151.0,0.00042191,7]
[325272201,1714675856333,-151.0,0.00042191,7]
[325272202,1714675856343,-1018.77,0.00042191,7]
[325272203,1714675856352,-154.544126,0.00042191,7]
[325272204,1714675856362,-500.0,0.00042191,7]
[325272205,1714675856371,-9406.91,0.00042191,7]
[325272206,1714675856380,-551.4,0.00042191,2]
[325272207,1714675856390,-500.0,0.00042191,7]
[325272208,1714675856399,-490.80301736,0.00042191,7]
[325272209,1714675856449,-546.70698264,0.00042191,7]
[325272210,1714675856458,-605.53,0.00042191,7]
[325272211,1714675856467,-500.0,0.00042191,7]
[325272212,1714675856476,-664.97,0.00042191,7]
[325272213,1714675856485,-1445.15,0.00042191,7]
[325272214,1714675856495,-500.0,0.00042191,7]
[325272215,1714675856504,-500.0,0.00042191,7]
[325272216,1714675856513,-500.0,0.00042191,7]
[325272217,1714675856521,-500.0,0.00042191,7]
[325272218,1714675856530,-1285.27,0.00042191,7]
[325272219,1714675856539,-775.92,0.00042191,7]
[325272220,1714675856548,-500.0,0.00042191,7]
[325272221,1714675856557,-326.8,0.00042191,7]
[325272222,1714675856567,-500.0,0.00042191,7]
[325272223,1714675856575,-500.0,0.00042191,7]
[325272224,1714675856585,-500.0,0.00042191,7]
[325272225,1714675856594,-500.0,0.00042191,7]
[325272226,1714675856603,-500.0,0.00042191,7]
[325272227,1714675856612,-500.0,0.00042191,7]
[325272228,1714675856620,-500.0,0.00042191,7]
[325272229,1714675856630,-500.0,0.00042191,7]
[325272230,1714675856639,-507.32,0.00042191,7]
[325272231,1714675856648,-500.0,0.00042191,7]
[325272232,1714675856657,-500.0,0.00042191,7]
[325272233,1714675856666,-711.27,0.00042191,7]
[325272234,1714675856675,-500.0,0.00042191,7]
[325272235,1714675856684,-702.39,0.00042191,7]
[325272236,1714675856693,-500.0,0.00042191,7]
[325272237,1714675856705,-500.0,0.00042191,7]
[325272238,1714675856715,-568.94,0.00042191,7]
[325272239,1714675856728,-506.47,0.00042191,7]
[325272240,1714675856737,-500.0,0.00042191,7]
[325272241,1714675856747,-500.0,0.00042191,7]
[325272242,1714675856757,-500.0,0.00042191,7]
[325272243,1714675856766,-972.23,0.00042191,7]
[325272244,1714675856776,-2702.11,0.00042191,7]
[325272245,1714675856785,-3000.0,0.00042464,10]
[325272246,1714675856794,-500.0,0.00042465,2]
[325272247,1714675856803,-4.55148379,0.00042465,7]
[325272248,1714675856815,-495.44851621,0.00042465,7]
[325272249,1714675856824,-406.44653835,0.00042465,7]
[325272250,1714675856833,-500.0,0.00042465,7]
[325272251,1714675856842,-500.0,0.00042465,7]
[325272252,1714675856851,-71.49799964,0.00042465,7]
[325272253,1714675856938,-436.13291602,0.00042465,7]
[325272254,1714675856949,-500.0,0.00042465,7]
[325272255,1714675857041,-348.85465364,0.00042465,7]
[325272256,1714675857053,-151.14534636,0.00042465,7]
[325272257,1714675857062,-500.0,0.00042465,7]
[325272258,1714675857072,-761.29,0.00042465,7]
[325272259,1714675857081,-500.0,0.00042465,7]
[325272260,1714675857091,-192.6,0.00042465,7]
[325272261,1714675857100,-465.96465364,0.00042465,7]
[325272262,1714675857113,-34.03534636,0.00042465,7]
[325272263,1714675857123,-500.0,0.00042465,7]
[325272264,1714675857133,-499.84659701,0.00042465,7]
[325272265,1714675857143,-427.59707398,0.00042465,7]
[325272266,1714675857154,-72.40292602,0.00042465,7]
[325272267,1714675857165,-242.49537233,0.00042465,7]
[325272268,1714675857176,-50.10171665,0.00042465,7]
[325272269,1714675857424,-372.37828335,0.00042465,7]
[325272270,1714675857434,-522.63364979,0.00042465,7]
[325272271,1714675857444,-222.45,0.00042465,7]
[325272272,1714675857455,-231.56,0.00042465,7]
[325272273,1714675857465,-500.0,0.00042465,7]
[325272274,1714675857475,-500.0,0.00042465,7]
[325272275,1714675857484,-706.32,0.00042465,7]
[325272276,1714675857493,-372.2,0.00042465,7]
[325272277,1714675857503,-500.0,0.00042465,7]
[325272278,1714675857512,-500.0,0.00042465,7]
[325272279,1714675857522,-500.0,0.00042465,7]
[325272280,1714675857532,-500.0,0.00042465,7]
[325272281,1714675857541,-519.14,0.00042465,7]
[325272282,1714675857551,-500.0,0.00042465,7]
[325272283,1714675857561,-499.47251859,0.00042465,7]
[325272284,1714675857734,-0.52748141,0.00042465,7]
[325272285,1714675857746,-812.23,0.00042465,7]
[325272286,1714675857756,-703.24,0.00042465,7]
[325272287,1714675857767,-484.00251859,0.00042465,7]
[325272293,1714676086227,294.8520985,0.00019935,2]
[325272295,1714676278393,163.14974,0.00019656,2]
[325272308,1714676559710,24900.0,0.00019913,2]
[325272309,1714676615020,19313.01528045,0.00019913,2]
[325272310,1714676754245,-396.66,0.00020904,3]
[325272311,1714676754265,-198.33,0.00020904,3]
[325272312,1714676754284,-595.03,0.00020904,3]
[325272313,1714676754306,-2849.10156421,0.00020908,2]
[325272314,1714676754326,-5841.63052287,0.0002091,2]
[325272315,1714676774588,162.463248,0.00019661,2]
[325272316,1714676795198,194.06678592,0.00019714,2]
[325272317,1714676809478,2801.93286673,0.0002,2]
[325272318,1714676828110,-1185.29078295,0.00020808,2]
[325272319,1714676828131,-637.72491451,0.00020831,2]
[325272320,1714676831137,-547.5658684,0.00020831,2]
[325272321,1714676831158,-1185.29078291,0.00020854,2]
[325272322,1714676831178,-1185.29078291,0.00020877,2]
[325272323,1714676831197,-894.69,0.00020898,3]
[325272324,1714676831217,-1185.29078291,0.000209,2]
[325272325,1714676831239,-67447.80014634,0.00020907,2]
[325272326,1714676831259,-5462.53125909,0.00020908,2]
[325272327,1714676831278,-775.88123273,0.00020908,2]
[325272328,1714676831298,-526.91179477,0.00020908,2]
[325272329,1714676831317,-164.02329265,0.00020908,2]
[325272330,1714676831337,-378.05590456,0.00020908,2]
[325272331,1714676831358,-155.18475814,0.00020908,2]
[325272332,1714676831379,-1907.45188905,0.00020908,2]
[325272333,1714676831402,-155.17295597,0.00020908,2]
[325272334,1714676831422,-475.3846747,0.00020908,2]
[325272335,1714676831442,-329.99389325,0.00020908,2]
[325272336,1714676831463,-184.25518477,0.00020908,2]
[325272337,1714676831485,-17503.86931515,0.00020908,2]
[325272338,1714676844101,-447.34,0.00020901,3]
[325272339,1714676844122,-41732.72857568,0.00020908,2]
[325272340,1714676844142,-48362.42927877,0.00020908,2]
[325272341,1714676844162,-551.84117837,0.00020908,2]
[325272342,1714676844182,-1313.56424433,0.00020908,2]
[325272343,1714676844204,-1066.65808195,0.00020908,2]
[325272344,1714676844224,-3.99652946,0.00020908,2]
[325272345,1714676856778,2229.54479977,0.000189,2]
[325272346,1714676864256,306.009666,0.00020065,2]
[325272347,1714676949123,-354.64628884,0.00020896,2]
[325272348,1714676949146,-340.0,0.00020896,3]
[325272349,1714676949167,-680.0,0.00020897,3]
[325272350,1714676949189,-671.06,0.00020902,3]
[325272351,1714676949211,-100.29091801,0.00020904,3]
[325272353,1714676961127,-123.37908199,0.00020904,3]
[325272354,1714676961148,-375.96627399,0.00020905,2]
[325272355,1714676961168,-656.95594852,0.00020905,2]
[325272356,1714676961193,-66790.84419782,0.00020905,2]
[325272357,1714676961213,-5462.53125909,0.00020906,2]
[325272358,1714676961235,-59236.59789083,0.00020906,2]
[325272359,1714676961254,-271.44077658,0.00020907,2]
[325272360,1714676961273,-939.47409396,0.00020908,2]
[325272361,1714676961292,-583.46076683,0.00020908,2]
[325272362,1714676961312,-186.27090551,0.00020908,2]
[325272363,1714676961331,-259.80757327,0.00020909,2]
[325272364,1714676961351,-250.0,0.00020909,2]
[325272365,1714676961370,-272.94598281,0.00020909,2]
[325272366,1714676961389,-361.72258076,0.00020909,2]
[325272367,1714676961408,-240.05147271,0.00020909,2]
[325272368,1714676961428,-193.78692561,0.00020909,2]
[325272369,1714676961450,-718.0782307,0.00020909,2]
[325272370,1714676961470,-365.73734918,0.00020909,2]
[325272371,1714676961489,-243.43625468,0.00020909,2]
[325272372,1714676961508,-278.93646986,0.00020909,2]
[325272373,1714676961529,-763.01749544,0.00020911,2]
[325272397,1714677033639,-463.25,0.00020904,3]
[325272398,1714677033649,-318.6,0.00020904,3]
[325272399,1714677033658,-461.81558938,0.0002091,2]
[325272400,1714677033667,-67447.80014634,0.0002091,2]
[325272401,1714677033677,-14915.25454128,0.00020911,2]
[325272402,1714677033686,-154.79876161,0.00020911,2]
[325272403,1714677033696,-212.35828211,0.00020912,2]
[325272404,1714677033706,-7876.33653411,0.00020912,2]
[325272405,1714677033717,-203.85845913,0.00020913,2]
[325272406,1714677033726,-159.3,0.0002099,3]
[325272407,1714677033735,-236.65367075,0.00021,2]
[325272408,1714677033746,-11407.93910227,0.00021,2]
[325272409,1714677033758,-26130.45845047,0.00021,2]
[325272410,1714677033768,-10013.86753409,0.00021,2]
[325272411,1714677033777,-197.33758082,0.00021,2]
[325272412,1714677033785,-10000.0,0.00021918,2]
[325272413,1714677033794,-166.666666,0.00021918,2]
[325272414,1714677033804,-159.27807126,0.00022,2]
[325272415,1714677033813,-188.82650661,0.00022,2]
[325272416,1714677033823,-2000.0,0.00022,2]
[325272417,1714677033831,-926.5,0.00022274,3]
[325272418,1714677033840,-637.2,0.00022274,3]
[325272419,1714677033850,-318.6,0.0002236,3]
[325272420,1714677033859,-166.666666,0.00022431,2]
[325272421,1714677033869,-166.666666,0.00022944,2]
[325272422,1714677033878,-714.43536843,0.00023,2]
[325272423,1714677033890,-166.666666,0.00023456,2]
[325272424,1714677033899,-2229.54479977,0.000239,2]
[325272425,1714677033908,-166.666666,0.00023969,2]
[325272426,1714677033918,-693.7301281,0.00024,2]
[325272427,1714677033927,-166.666666,0.00024482,2]
[325272428,1714677033936,-180.8804097,0.00024658,2]
[325272429,1714677033946,-1836.87989669,0.00025,2]
[325272430,1714677033955,-1017.07259173,0.00025,2]
[325272431,1714677033964,-757.16754489,0.00025,2]
[325272432,1714677033973,-4199.85301839,0.00026,2]
[325272465,1714677038226,-6926.09728649,0.00026,2]
[325272467,1714677038235,-391.32061095,0.000266,2]
[325272469,1714677038245,-6215.05815108,0.00027,2]
[325272471,1714677038255,-8532.81812051,0.00027,2]
[325272473,1714677038264,-141246.80505723,0.00027,15]
[325272475,1714677038273,-976.18009304,0.000274,2]
[325272477,1714677038282,-55555.0,0.000274,3]
[325272479,1714677038291,-154.65974855,0.000274,2]
[325272481,1714677038301,-32455.86620463,0.000275,2]
[325272483,1714677038311,-221.01865842,0.00028,2]
[325272485,1714677038320,-686.36007371,0.00028118,2]
[325272487,1714677038330,-165.709812,0.00028493,2]
[325272489,1714677038339,-165.071998,0.00028493,2]
[325272490,1714677038348,-262.952668,0.00028493,2]
[325272493,1714677038357,-891.24942819,0.00028637,120]
[325272494,1714677038366,-188539.97572752,0.0002877,2]
[325272496,1714677038375,-2229.54479977,0.000289,2]
[325272498,1714677038385,-154.67518212,0.00029,2]
[325272500,1714677038394,-843.86378738,0.00029,2]
[325272502,1714677038403,-178000.0,0.000299,2]
[325272504,1714677038412,-155.59303323,0.0003,4]
[325272506,1714677038421,-1966.77017511,0.0003,7]
[325272508,1714677038430,-577.32231329,0.0003,2]
[325272510,1714677038439,-285.0,0.0003,2]
[325272512,1714677038448,-553.0,0.00030082,3]
[325272515,1714677038461,-200.800433,0.00030411,2]
[325272517,1714677038471,-200.800433,0.00030411,120]
[325272519,1714677038480,-4270.8230431,0.00031,4]
[325272521,1714677038490,-2022.38793818,0.00031,2]
[325272522,1714677038499,-501.91831464,0.00031,120]
[325272524,1714677038508,-1966.54213992,0.00031,2]
[325272526,1714677038518,-1135.19637409,0.00031,4]
[325272528,1714677038527,-447.32492958,0.00032,4]